[Event "FIDE Zonal 4-2 Women 2023"]
[Site "Dimbroko"]
[Date "2023.03.27"]
[Round "1.1"]
[White "Rodriguez Guevara, Celia M."]
[Black "Oyenga, Justine Anassika"]
[Result "1-0"]
[ECO "C50"]
[WhiteElo "1777"]
[BlackElo "1187"]
[Annotator "NA RC COMBH"]
[PlyCount "39"]
[EventDate "2023.03.25"]
[EventType "swiss"]
[SourceTitle "playchess.com"]
[Source "ChessBase"]
[SourceQuality "1"]
[TimeControl "40/5400+30:1800+30"]

1. e4 {[%emt 0:00:05]} e5 {[%emt 0:00:15]} 2. Nf3 {[%emt 0:00:23]} Nc6 {[%emt 0:00:23]} 3. Bc4 {[%emt 0:00:13]} f6 {[%emt 0:01:42]} 4. c3 {[%emt 0:08:54]} Bc5 {[%emt 0:01:16]} 5. d4 {[%emt 0:04:23]} Bb6 {[%emt 0:01:35]} 6. dxe5 {[%emt 0:16:06]} Nxe5 {[%emt 0:01:44]} 7. Nxe5 {[%emt 0:00:58]} fxe5 {[%emt 0:00:18]} 8. Qh5+ {[%emt 0:02:07]} g6 {[%emt 0:01:17]} 9. Qxe5+ {[%emt 0:00:28]} Qe7 {[%emt 0:01:41]} 10. Qxh8 {[%emt 0:01:31]} Qxe4+ {[%emt 0:01:24]} 11. Be2 {[%emt 0:00:46]} Qf5 {[%emt 0:05:46]} 12. Qxg8+ {[%emt 0:01:27]} Qf8 {[%emt 1:19:09]} 13. Qxf8+ {[%emt 0:00:39]} Kxf8 {[%emt 0:00:00]} 14. Bh6+ {[%emt 0:02:11]} Kf7 {[%emt 0:00:00]} 15. Bg4 {[%emt 0:03:18]} Bc5 {[%emt 0:00:00]} 16. Nd2 {[%emt 0:00:36]} b5 {[%emt 0:00:00]} 17. O-O-O {[%emt 0:01:04]} Bxf2 {[%emt 0:00:00]} 18. Rhf1 {[%emt 0:00:13]} Ke7 {[%emt 0:00:00]} 19. Rxf2 {[%emt 0:00:22]} Bb7 {[%emt 0:00:00]} 20. Ne4 {[%emt 0:02:21]} 1-0

[Event "FIDE Zonal 4-2 Women 2023"]
[Site "Dimbroko"]
[Date "2023.03.27"]
[Round "1.2"]
[White "Ayemou Akissi Victoire Sinchie"]
[Black "Marochkina, Nadezhda Valerevna"]
[Result "1-0"]
[ECO "B18"]
[WhiteElo "1177"]
[BlackElo "1689"]
[Annotator "NA RC COMBH"]
[PlyCount "99"]
[EventDate "2023.03.25"]
[EventType "swiss"]
[SourceTitle "playchess.com"]
[Source "ChessBase"]
[SourceQuality "1"]
[TimeControl "40/5400+30:1800+30"]

1. e4 {[%emt 0:00:14]} c6 {[%emt 0:00:06]} 2. d4 {[%emt 0:00:17]} d5 {[%emt 0:00:10]} 3. Nc3 {[%emt 0:00:16]} dxe4 {[%emt 0:00:39]} 4. Nxe4 {[%emt 0:00:27]} Bf5 {[%emt 0:00:34]} 5. Ng3 {[%emt 0:00:46]} Bg6 {[%emt 0:00:20]} 6. Nf3 {[%emt 0:00:51]} e6 {[%emt 0:01:29]} 7. Bd3 {[%emt 0:00:44]} Nf6 {[%emt 0:02:16]} 8. O-O {[%emt 0:01:18]} Qb6 {[%emt 0:03:11]} 9. b3 {[%emt 0:02:26]} Be7 {[%emt 0:03:09]} 10. Bb2 {[%emt 0:01:16]} Nbd7 {[%emt 0:01:54]} 11. Re1 {[%emt 0:03:17]} O-O {[%emt 0:02:48]} 12. c4 {[%emt 0:02:13]} a5 {[%emt 0:05:04]} 13. Bxg6 {[%emt 0:01:24]} hxg6 {[%emt 0:00:06]} 14. Qd2 {[%emt 0:02:35]} Rfd8 {[%emt 0:10:06]} 15. h3 {[%emt 0:03:38]} a4 {[%emt 0:01:27]} 16. c5 {[%emt 0:01:54]} Nxc5 {[%emt 0:07:50]} 17. Ba3 {[%emt 0:03:33]} Qc7 {[%emt 0:04:27]} 18. Qb4 {[%emt 0:01:54]} Nd5 {[%emt 0:01:41]} 19. Qc4 {[%emt 0:02:11]} Nd7 {[%emt 0:04:53]} 20. Bxe7 {[%emt 0:02:00]} Nxe7 {[%emt 0:00:08]} 21. bxa4 {[%emt 0:00:48]} Nb6 {[%emt 0:00:41]} 22. Qb3 {[%emt 0:01:46]} Ra6 {[%emt 0:48:31]} 23. a5 Rxa5 {[%emt 0:00:00]} 24. Rec1 {[%emt 1:06:42]} Ra4 25. Rcb1 {[%emt 0:00:00]} Ned5 {[%emt 0:00:00]} 26. Ne4 {[%emt 0:00:00]} Rb4 {[%emt 0:00:00]} 27. Qd1 {[%emt 0:00:00]} Rxb1 {[%emt 0:00:00]} 28. Rxb1 {[%emt 0:00:00]} f5 {[%emt 0:00:00]} 29. Nc5 {[%emt 0:00:00]} Re8 {[%emt 0:00:00]} 30. Qe1 {[%emt 0:00:00]} Qe7 {[%emt 0:00:00]} 31. a4 {[%emt 0:00:00]} Ra8 {[%emt 0:00:00]} 32. a5 {[%emt 0:00:00]} Nc8 {[%emt 0:00:00]} 33. Rxb7 {[%emt 0:00:00]} Qf6 {[%emt 0:00:00]} 34. a6 {[%emt 0:00:00]} Ra7 {[%emt 0:00:00]} 35. Ne5 {[%emt 0:00:00]} Nde7 {[%emt 0:00:00]} 36. Qa5 {[%emt 0:00:00]} Kh7 {[%emt 0:00:00]} 37. Qc7 {[%emt 0:00:00]} Ra8 {[%emt 0:00:00]} 38. a7 {[%emt 0:00:00]} Nd5 {[%emt 0:00:00]} 39. Qd7 {[%emt 0:00:00]} Nde7 {[%emt 0:00:20]} 40. Na4 {[%emt 0:00:00]} Nd5 {[%emt 0:00:44]} 41. Nxc6 {[%emt 0:00:00]} Nxa7 {[%emt 0:33:12]} 42. Rxa7 {[%emt 0:00:00]} Rg8 {[%emt 0:00:22]} 43. Qf7 {[%emt 0:00:43]} Qg5 {[%emt 0:01:32]} 44. Kh2 {[%emt 0:02:40]} Qf4+ {[%emt 0:00:20]} 45. Kg1 {[%emt 0:01:47]} Qc1+ {[%emt 0:00:11]} 46. Kh2 {[%emt 0:00:21]} Qxc6 {[%emt 0:00:27]} 47. Nc5 {[%emt 0:00:33]} Qd6+ {[%emt 0:00:47]} 48. g3 {[%emt 0:00:29]} e5 {[%emt 0:00:00]} 49. Ne6 {[%emt 0:00:00]} exd4 {[%emt 0:00:00]} 50. Ra8 {[%emt 0:00:00]} 1-0

[Event "FIDE Zonal 4-2 Women 2023"]
[Site "Dimbroko"]
[Date "2023.03.27"]
[Round "1.3"]
[White "Abigail Karyah"]
[Black "Kouassi Edichy Berenice"]
[Result "1-0"]
[ECO "C68"]
[WhiteElo "1620"]
[BlackElo "1128"]
[Annotator "NA RC COMBH"]
[PlyCount "120"]
[EventDate "2023.03.25"]
[EventType "swiss"]
[SourceTitle "playchess.com"]
[Source "ChessBase"]
[SourceQuality "1"]
[TimeControl "40/5400+30:1800+30"]

1. e4 {[%emt 0:00:03]} e5 {[%emt 0:00:33]} 2. Nf3 {[%emt 0:00:08]} Nc6 {[%emt 0:00:31]} 3. Bb5 {[%emt 0:00:11]} a6 {[%emt 0:01:06]} 4. Bxc6 {[%emt 0:00:13]} bxc6 {[%emt 0:03:13]} 5. O-O {[%emt 0:01:09]} Bd6 {[%emt 0:01:04]} 6. d4 {[%emt 0:00:24]} f6 {[%emt 0:03:37]} 7. c4 {[%emt 0:01:26]} exd4 {[%emt 0:02:48]} 8. Qxd4 {[%emt 0:00:16]} Qe7 {[%emt 0:03:44]} 9. Re1 {[%emt 0:00:46]} Bb7 {[%emt 0:02:00]} 10. Nc3 {[%emt 0:10:25]} O-O-O {[%emt 0:04:55]} 11. a3 {[%emt 0:01:19]} c5 {[%emt 0:04:33]} 12. Qd3 {[%emt 0:00:26]} Re8 {[%emt 0:03:44]} 13. Bd2 {[%emt 0:00:58]} Qf7 {[%emt 0:04:41]} 14. Nd5 {[%emt 1:19:46]} Ne7 {[%emt 0:02:59]} 15. Ba5 {[%emt 0:00:00]} Nxd5 {[%emt 0:02:34]} 16. exd5 {[%emt 0:00:00]} Qg6 {[%emt 0:02:48]} 17. Qxg6 {[%emt 0:00:00]} hxg6 {[%emt 0:00:28]} 18. g3 {[%emt 0:00:00]} c6 {[%emt 0:05:22]} 19. dxc6 {[%emt 0:00:00]} Bxc6 {[%emt 0:00:38]} 20. Nh4 {[%emt 0:00:00]} g5 {[%emt 0:06:29]} 21. Nf5 {[%emt 0:00:00]} Be5 {[%emt 0:04:51]} 22. Nxg7 {[%emt 0:00:00]} Re7 {[%emt 0:03:37]} 23. Nf5 {[%emt 0:00:00]} Reh7 {[%emt 0:01:33]} 24. h4 {[%emt 0:00:00]} Kb7 {[%emt 0:03:39]} 25. Rac1 {[%emt 0:00:00]} Bf3 {[%emt 0:01:46]} 26. Bc3 {[%emt 0:00:00]} Bxc3 {[%emt 0:04:18]} 27. Rxc3 {[%emt 0:00:00]} Bg4 {[%emt 0:01:01]} 28. Nd6+ {[%emt 0:00:00]} Kc7 {[%emt 0:01:53]} 29. Ne4 {[%emt 0:00:00]} Rh6 {[%emt 0:03:45]} 30. f3 {[%emt 0:00:00]} Bf5 {[%emt 0:03:00]} 31. Nxc5 {[%emt 0:00:00]} Kb6 {[%emt 0:03:26]} 32. b4 {[%emt 0:00:00]} gxh4 {[%emt 0:00:42]} 33. gxh4 {[%emt 0:00:00]} Rxh4 {[%emt 0:01:07]} 34. Kf2 {[%emt 0:00:00]} Rh2+ {[%emt 0:00:47]} 35. Kg3 {[%emt 0:00:19]} R2h3+ {[%emt 0:01:50]} 36. Kf4 {[%emt 0:00:31]} R8h5 {[%emt 0:03:05]} 37. Re7 {[%emt 0:01:35]} Kc6 {[%emt 0:05:23]} 38. Nxa6 {[%emt 0:01:12]} R3h4+ {[%emt 0:00:55]} 39. Ke3 {[%emt 0:00:26]} Be6 {[%emt 0:00:19]} 40. b5+ {[%emt 0:02:46]} Kd6 {[%emt 0:00:43]} 41. Rg7 {[%emt 0:30:16]} Re5+ {[%emt 0:30:41]} 42. Kf2 {[%emt 0:00:35]} Bxc4 {[%emt 0:01:46]} 43. a4 {[%emt 0:03:16]} Re2+ {[%emt 0:00:27]} 44. Kg3 {[%emt 0:00:34]} Rd4 {[%emt 0:03:26]} 45. Nb8 {[%emt 0:00:34]} Be6 {[%emt 0:00:00]} 46. Ra3 {[%emt 0:00:00]} Kc7 {[%emt 0:00:00]} 47. Na6+ {[%emt 0:00:00]} Kb6 {[%emt 0:00:00]} 48. Rg6 {[%emt 0:00:00]} f5 {[%emt 0:00:00]} 49. Ra1 {[%emt 0:00:00]} f4+ {[%emt 0:00:00]} 50. Kh4 {[%emt 0:00:00]} Rh2+ {[%emt 0:00:00]} 51. Kg5 {[%emt 0:00:00]} Rd5+ {[%emt 0:00:00]} 52. Kxf4 {[%emt 0:00:00]} Rf5+ {[%emt 0:00:00]} 53. Kg3 {[%emt 0:00:00]} Rhh5 {[%emt 0:00:00]} 54. a5+ {[%emt 0:00:00]} Ka7 {[%emt 0:00:00]} 55. Nc7 {[%emt 0:00:00]} Rfg5+ {[%emt 0:00:00]} 56. Rxg5 Rxg5+ {[%emt 0:00:00]} 57. Kh4 {[%emt 0:00:00]} Re5 {[%emt 0:00:00]} 58. Nxe6 {[%emt 0:00:00]} Rxe6 {[%emt 0:00:00]} 59. b6+ {[%emt 0:10:26]} Ka6 {[%emt 0:08:13]} 60. Rb1 {[%emt 0:00:30]} Kb7 {[%emt 0:00:00]} 1-0

[Event "FIDE Zonal 4-2 Women 2023"]
[Site "Dimbroko"]
[Date "2023.03.27"]
[Round "1.4"]
[White "Princess K. Banney"]
[Black "Ayemou Mazan Emmanuela Esther"]
[Result "0-1"]
[ECO "C68"]
[WhiteElo "1061"]
[BlackElo "1556"]
[Annotator "NA RC COMBH"]
[PlyCount "208"]
[EventDate "2023.03.25"]
[EventType "swiss"]
[SourceTitle "playchess.com"]
[Source "ChessBase"]
[SourceQuality "1"]
[TimeControl "40/5400+30:1800+30"]

1. e4 {[%emt 1:31:00]} e5 {[%emt 1:31:00]} 2. Nf3 {[%emt 0:00:00]} Nc6 {[%emt 0:00:30]} 3. Bb5 {[%emt 0:00:00]} a6 {[%emt 0:00:00]} 4. Bxc6 {[%emt 0:00:00]} dxc6 {[%emt 0:00:00]} 5. Nxe5 {[%emt 0:00:00]} Qd4 {[%emt 0:00:00]} 6. Nf3 {[%emt 0:00:00]} Qxe4+ {[%emt 0:00:00]} 7. Qe2 {[%emt 0:00:00]} Qxe2+ {[%emt 0:00:00]} 8. Kxe2 {[%emt 0:00:00]} Bf5 {[%emt 0:00:00]} 9. Re1 {[%emt 0:00:00]} O-O-O {[%emt 0:00:00]} 10. d3 {[%emt 0:00:00]} Bb4 {[%emt 0:00:00]} 11. Nc3 {[%emt 0:00:00]} Nf6 {[%emt 0:00:00]} 12. Bg5 {[%emt 0:00:00]} Rde8+ {[%emt 0:00:00]} 13. Kf1 {[%emt 0:00:00]} Nd5 {[%emt 0:00:00]} 14. Rxe8+ {[%emt 0:00:00]} Rxe8 {[%emt 0:00:00]} 15. Nxd5 {[%emt 0:00:00]} cxd5 {[%emt 0:00:00]} 16. a3 {[%emt 0:00:00]} Bd6 {[%emt 0:00:00]} 17. h3 {[%emt 0:00:00]} h6 {[%emt 0:00:00]} 18. Bd2 {[%emt 0:00:00]} c5 {[%emt 0:00:00]} 19. Ne1 {[%emt 0:00:00]} Be5 {[%emt 0:00:00]} 20. c3 {[%emt 0:00:00]} Re6 {[%emt 0:00:00]} 21. b4 {[%emt 0:00:00]} d4 {[%emt 0:00:00]} 22. Rc1 {[%emt 0:00:00]} b6 {[%emt 0:00:00]} 23. bxc5 {[%emt 0:00:00]} bxc5 {[%emt 0:00:00]} 24. cxd4 {[%emt 0:00:00]} Bxd4 {[%emt 0:00:00]} 25. Bc3 {[%emt 0:00:00]} Kd7 {[%emt 0:00:00]} 26. Bxd4 {[%emt 0:00:00]} cxd4 {[%emt 0:00:00]} 27. Rc5 {[%emt 0:00:00]} Bg6 {[%emt 0:00:00]} 28. Rd5+ {[%emt 0:00:00]} Rd6 {[%emt 0:00:00]} 29. Rxd6+ {[%emt 0:00:00]} Kxd6 {[%emt 0:00:00]} 30. Ke2 {[%emt 0:00:00]} f5 {[%emt 0:00:00]} 31. Nc2 {[%emt 0:00:00]} Bh5+ {[%emt 0:00:00]} 32. f3 {[%emt 0:00:00]} Kc5 {[%emt 0:00:00]} 33. g4 {[%emt 0:00:00]} Bg6 {[%emt 0:00:00]} 34. f4 {[%emt 0:00:00]} h5 {[%emt 0:00:00]} 35. g5 {[%emt 0:00:00]} a5 {[%emt 0:00:00]} 36. h4 {[%emt 0:00:00]} Bf7 {[%emt 0:00:00]} 37. Ne1 {[%emt 0:00:00]} Bd5 {[%emt 0:00:00]} 38. Kd2 {[%emt 0:00:00]} Bc6 {[%emt 0:00:00]} 39. Nc2 {[%emt 0:00:00]} Bd5 {[%emt 0:00:00]} 40. Ne1 {[%emt 0:00:00]} Kb5 {[%emt 0:00:00]} 41. Kc2 {[%emt 0:13:48]} Kc5 {[%emt 0:00:00]} 42. Kb2 {[%emt 0:01:22]} Bh1 {[%emt 0:00:00]} 43. Kc2 {[%emt 0:00:58]} Bc6 {[%emt 0:00:00]} 44. Kb2 {[%emt 0:00:23]} Bb5 {[%emt 0:00:00]} 45. Kc2 {[%emt 0:03:39]} Ba4+ {[%emt 0:00:15]} 46. Kb2 {[%emt 0:00:17]} Bd1 {[%emt 0:00:52]} 47. Kc1 {[%emt 0:00:55]} Bg4 {[%emt 0:03:20]} 48. Kb2 {[%emt 0:00:12]} Be2 {[%emt 0:00:35]} 49. Kc1 {[%emt 0:01:12]} Kb5 {[%emt 0:00:41]} 50. Kb2 {[%emt 0:00:05]} Ka4 {[%emt 0:02:44]} 51. Ka2 {[%emt 0:00:39]} Bd1 {[%emt 0:02:23]} 52. Kb2 {[%emt 0:00:37]} g6 {[%emt 0:01:07]} 53. Ka2 {[%emt 0:00:57]} Kb5 {[%emt 0:03:40]} 54. Kb2 {[%emt 0:00:46]} Kc5 {[%emt 0:00:43]} 55. Kc1 {[%emt 0:00:33]} Be2 {[%emt 0:01:30]} 56. Kb2 {[%emt 0:00:09]} Kb6 {[%emt 0:03:14]} 57. Kc1 {[%emt 0:00:25]} Kb5 {[%emt 0:36:26]} 58. Kb2 {[%emt 0:01:31]} Bf1 {[%emt 0:00:00]} 59. Kc1 {[%emt 0:01:35]} Ka4 {[%emt 0:00:00]} 60. Kb2 {[%emt 0:00:13]} Be2 {[%emt 0:00:00]} 61. Ka2 {[%emt 0:00:28]} Bd1 {[%emt 0:00:00]} 62. Kb2 {[%emt 0:00:19]} Kb5 {[%emt 0:00:00]} 63. Kc1 {[%emt 0:00:16]} Be2 {[%emt 0:00:00]} 64. Kb2 {[%emt 0:00:04]} Kc6 {[%emt 0:00:00]} 65. Kc1 {[%emt 0:01:23]} Kd6 {[%emt 0:00:00]} 66. Kd2 {[%emt 0:00:49]} Bg4 {[%emt 0:00:00]} 67. Kc1 {[%emt 0:00:10]} Kd5 {[%emt 0:00:00]} 68. Kb2 {[%emt 0:00:30]} Bd1 {[%emt 0:00:00]} 69. Kc1 {[%emt 0:00:18]} Ba4 {[%emt 0:00:00]} 70. Kb2 {[%emt 0:00:14]} Kd6 {[%emt 0:00:00]} 71. Kc1 {[%emt 0:00:24]} Bc6 {[%emt 0:00:00]} 72. Kb2 {[%emt 0:00:50]} Bh1 {[%emt 0:00:00]} 73. Kc1 {[%emt 0:00:59]} Kd5 {[%emt 0:00:00]} 74. Kb2 {[%emt 0:00:19]} Kc5 {[%emt 0:00:00]} 75. Kb3 {[%emt 0:02:15]} Bc6 {[%emt 0:00:00]} 76. a4 {[%emt 0:02:09]} Bb7 {[%emt 0:00:00]} 77. Nc2 {[%emt 0:01:01]} Ba6 {[%emt 0:00:00]} 78. Ne1 {[%emt 0:00:32]} Bb7 {[%emt 0:00:00]} 79. Nc2 {[%emt 0:00:44]} Bd5+ {[%emt 0:00:00]} 80. Ka3 {[%emt 0:00:22]} Bf3 {[%emt 0:00:00]} 81. Kb3 {[%emt 0:01:04]} Bd1 {[%emt 0:00:05]} 82. Kb2 {[%emt 0:00:50]} Bxc2 {[%emt 0:00:14]} 83. Kxc2 {[%emt 0:00:31]} Kb4 {[%emt 0:00:08]} 84. Kb2 {[%emt 0:00:40]} Kxa4 {[%emt 0:00:11]} 85. Ka2 {[%emt 0:02:02]} Kb4 {[%emt 0:00:15]} 86. Kb2 {[%emt 0:00:26]} a4 {[%emt 0:00:10]} 87. Ka2 {[%emt 0:00:48]} a3 {[%emt 0:00:25]} 88. Ka1 {[%emt 0:00:31]} Kc3 {[%emt 0:00:15]} 89. Ka2 {[%emt 0:02:59]} Kxd3 {[%emt 0:00:10]} 90. Kxa3 {[%emt 0:01:02]} Kc2 {[%emt 0:00:11]} 91. Kb4 {[%emt 0:05:23]} d3 {[%emt 0:00:10]} 92. Kc5 {[%emt 0:01:02]} d2 {[%emt 0:00:14]} 93. Kd6 {[%emt 0:00:23]} d1=Q+ {[%emt 0:00:22]} 94. Ke6 {[%emt 0:00:04]} Qd4 {[%emt 0:00:55]} 95. Kf7 {[%emt 0:00:26]} Qd6 {[%emt 0:00:15]} 96. Kg7 {[%emt 0:00:35]} Qe6 {[%emt 0:00:30]} 97. Kh6 {[%emt 0:01:29]} Kc3 {[%emt 0:00:18]} 98. Kh7 {[%emt 0:00:31]} Kc4 {[%emt 0:00:44]} 99. Kg7 {[%emt 0:00:35]} Kd5 {[%emt 0:00:27]} 100. Kf8 {[%emt 0:00:31]} Kd6 {[%emt 0:00:19]} 101. Kg7 {[%emt 0:00:09]} Ke7 {[%emt 0:00:17]} 102. Kh7 {[%emt 0:01:06]} Kf7 {[%emt 0:00:24]} 103. Kh6 {[%emt 0:00:39]} Qe8 {[%emt 0:00:16]} 104. Kh7 {[%emt 0:01:21]} Qg8+ {[%emt 0:00:11]} 0-1

[Event "FIDE Zonal 4-2 Women 2023"]
[Site "Dimbroko"]
[Date "2023.03.27"]
[Round "2.1"]
[White "Yavo Tchetche, Marie"]
[Black "Rodriguez Guevara, Celia M."]
[Result "0-1"]
[ECO "E18"]
[WhiteElo "1413"]
[BlackElo "1777"]
[Annotator "NA RC COMBH"]
[PlyCount "63"]
[EventDate "2023.03.25"]
[EventType "swiss"]
[SourceTitle "playchess.com"]
[Source "ChessBase"]
[SourceQuality "1"]
[TimeControl "40/5400+30:1800+30"]

1. c4 {[%emt 0:00:26]} Nf6 {[%emt 0:02:48]} 2. Nf3 {[%emt 0:01:49]} e6 {[%emt 0:01:09]} 3. g3 {[%emt 0:03:56]} d5 {[%emt 0:01:19]} 4. cxd5 {[%emt 0:01:37]} exd5 {[%emt 0:00:13]} 5. d4 {[%emt 0:01:26]} Be7 {[%emt 0:10:18]} 6. Bg2 {[%emt 0:07:26]} O-O {[%emt 0:00:44]} 7. O-O {[%emt 0:02:24]} b6 {[%emt 0:02:08]} 8. Nc3 {[%emt 0:07:41]} Bb7 {[%emt 0:02:35]} 9. Qc2 {[%emt 0:05:04]} c5 {[%emt 0:06:54]} 10. Re1 {[%emt 0:03:48]} Nbd7 {[%emt 0:05:07]} 11. Bd2 {[%emt 0:06:28]} Re8 {[%emt 0:07:24]} 12. Rac1 {[%emt 0:04:01]} Rc8 {[%emt 0:01:16]} 13. Qb1 {[%emt 0:11:40]} Ne4 {[%emt 0:14:35]} 14. Bf4 {[%emt 0:04:07]} Ndf6 {[%emt 0:05:05]} 15. Red1 {[%emt 0:05:13]} cxd4 {[%emt 0:23:27]} 16. Nxd4 {[%emt 0:04:12]} Bc5 {[%emt 0:06:01]} 17. Nxe4 {[%emt 0:04:50]} Nxe4 {[%emt 0:00:10]} 18. b4 {[%emt 0:02:04]} Bxd4 {[%emt 0:01:27]} 19. Rxd4 {[%emt 0:04:06]} Nc3 {[%emt 0:00:06]} 20. Rxc3 {[%emt 0:05:25]} Rxc3 {[%emt 0:00:08]} 21. Qd1 {[%emt 0:01:21]} Qc8 {[%emt 0:02:29]} 22. Bxd5 {[%emt 0:02:18]} Bxd5 {[%emt 0:00:31]} 23. Rxd5 {[%emt 0:01:07]} Rc2 {[%emt 0:00:06]} 24. Rd7 {[%emt 0:06:55]} Rcxe2 {[%emt 0:01:14]} 25. Be3 {[%emt 0:01:08]} Rxa2 {[%emt 0:00:46]} 26. Qd5 {[%emt 0:02:25]} Ra1+ {[%emt 0:00:12]} 27. Kg2 {[%emt 0:00:01]} Qa8 {[%emt 0:00:22]} 28. Qxa8 {[%emt 0:00:34]} Rxa8 {[%emt 0:00:03]} 29. Bf4 {[%emt 0:00:32]} h6 {[%emt 0:00:26]} 30. h4 {[%emt 0:00:16]} Rb1 {[%emt 0:00:21]} 31. Rd4 {[%emt 0:00:11]} Rb3 {[%emt 0:00:16]} 32. Rd3 {[%emt 0:00:00]} 0-1

[Event "FIDE Zonal 4-2 Women 2023"]
[Site "Dimbroko"]
[Date "2023.03.27"]
[Round "2.2"]
[White "Benson, Maud"]
[Black "Abigail Karyah"]
[Result "1/2-1/2"]
[ECO "E07"]
[WhiteElo "1381"]
[BlackElo "1620"]
[Annotator "NA RC COMBH"]
[PlyCount "111"]
[EventDate "2023.03.25"]
[EventType "swiss"]
[SourceTitle "playchess.com"]
[Source "ChessBase"]
[SourceQuality "1"]
[TimeControl "40/5400+30:1800+30"]

1. d4 {[%emt 0:00:12]} d5 {[%emt 0:00:07]} 2. g3 {[%emt 0:00:11]} Nf6 {[%emt 0:00:22]} 3. Bg2 {[%emt 0:00:06]} e6 {[%emt 0:00:15]} 4. Nf3 {[%emt 0:00:35]} Be7 {[%emt 0:00:12]} 5. O-O {[%emt 0:00:16]} O-O {[%emt 0:00:08]} 6. Nbd2 {[%emt 0:00:52]} Nbd7 {[%emt 0:00:16]} 7. c4 {[%emt 0:02:46]} b6 {[%emt 0:01:00]} 8. Qc2 {[%emt 0:00:41]} Bb7 {[%emt 0:00:47]} 9. Ne5 {[%emt 0:00:44]} c5 {[%emt 0:09:23]} 10. e3 {[%emt 0:01:30]} Qc7 {[%emt 0:00:50]} 11. Nxd7 {[%emt 0:01:00]} Qxd7 {[%emt 0:02:05]} 12. b3 {[%emt 0:06:15]} cxd4 {[%emt 0:00:36]} 13. exd4 {[%emt 0:00:38]} Rac8 {[%emt 0:01:16]} 14. Bb2 {[%emt 0:02:41]} Ba6 {[%emt 0:02:30]} 15. Rfc1 {[%emt 0:20:53]} dxc4 {[%emt 0:14:01]} 16. bxc4 {[%emt 0:00:24]} Bb4 {[%emt 0:02:28]} 17. Nf3 {[%emt 0:20:33]} Rxc4 {[%emt 0:01:45]} 18. Qb3 {[%emt 0:01:15]} Rxc1+ {[%emt 0:01:04]} 19. Rxc1 {[%emt 0:00:10]} Bd6 {[%emt 0:01:42]} 20. Ne5 {[%emt 0:01:40]} Bxe5 {[%emt 0:05:39]} 21. dxe5 {[%emt 0:00:14]} Nd5 {[%emt 0:01:35]} 22. Ba3 {[%emt 0:02:18]} Rc8 {[%emt 0:02:28]} 23. Rxc8+ {[%emt 0:00:44]} Bxc8 {[%emt 0:00:39]} 24. Bd6 {[%emt 0:00:44]} Bb7 {[%emt 0:02:22]} 25. Qa3 {[%emt 0:04:06]} a6 {[%emt 0:00:43]} 26. Qb3 {[%emt 0:01:47]} b5 {[%emt 0:00:21]} 27. Qa3 {[%emt 0:09:46]} Nb6 {[%emt 0:06:18]} 28. Bxb7 {[%emt 0:07:12]} Qxb7 {[%emt 0:00:10]} 29. Qc5 {[%emt 0:00:13]} Nd5 {[%emt 0:01:50]} 30. a3 {[%emt 0:01:53]} a5 {[%emt 0:00:26]} 31. f4 {[%emt 0:00:55]} Qb6 {[%emt 0:01:09]} 32. Qxb6 {[%emt 0:01:11]} Nxb6 {[%emt 0:00:17]} 33. Kf2 {[%emt 0:00:43]} f6 {[%emt 0:01:30]} 34. Ke2 {[%emt 0:00:36]} Kf7 {[%emt 0:00:22]} 35. Kd3 {[%emt 0:01:00]} Nd5 {[%emt 0:02:38]} 36. Kd4 {[%emt 0:03:03]} Kg6 {[%emt 0:00:37]} 37. exf6 {[%emt 0:01:16]} gxf6 {[%emt 0:00:48]} 38. h3 {[%emt 0:02:17]} h5 {[%emt 0:00:22]} 39. Ke4 {[%emt 0:05:36]} Nb6 {[%emt 0:03:36]} 40. g4 {[%emt 0:00:32]} Nc4 {[%emt 0:01:12]} 41. Bc5 {[%emt 0:30:28]} hxg4 {[%emt 0:32:00]} 42. hxg4 {[%emt 0:00:20]} e5 {[%emt 0:01:23]} 43. Kf3 {[%emt 0:00:00]} exf4 {[%emt 0:00:00]} 44. Kxf4 {[%emt 0:00:00]} Ne5 {[%emt 0:00:00]} 45. Bb6 {[%emt 0:00:00]} Nc4 {[%emt 0:00:00]} 46. Bc5 {[%emt 0:00:00]} Ne5 {[%emt 0:00:00]} 47. Bb6 {[%emt 0:00:00]} b4 {[%emt 0:03:21]} 48. Bxa5 {[%emt 0:00:00]} bxa3 {[%emt 0:00:10]} 49. Bc3 {[%emt 0:00:00]} Nc4 {[%emt 0:09:19]} 50. Ke4 {[%emt 0:00:00]} Kg5 {[%emt 0:05:39]} 51. Kd3 {[%emt 0:00:00]} Nd6 {[%emt 0:01:22]} 52. Kc2 {[%emt 0:00:00]} Nb5 {[%emt 0:17:27]} 53. Ba1 {[%emt 0:00:00]} Nd6 {[%emt 0:00:00]} 54. Kb3 {[%emt 0:00:00]} Nf7 {[%emt 0:00:00]} 55. Bxf6+ {[%emt 0:00:00]} Kxf6 {[%emt 0:00:00]} 56. Kxa3 {[%emt 0:00:00]} 1/2-1/2

[Event "FIDE Zonal 4-2 Women 2023"]
[Site "Dimbroko"]
[Date "2023.03.27"]
[Round "2.3"]
[White "Ayemou Mazan Emmanuela Esther"]
[Black "Ayemou Akissi Victoire Sinchie"]
[Result "1-0"]
[ECO "C50"]
[WhiteElo "1556"]
[BlackElo "1177"]
[Annotator "NA RC COMBH"]
[PlyCount "39"]
[EventDate "2023.03.25"]
[EventType "swiss"]
[SourceTitle "playchess.com"]
[Source "ChessBase"]
[SourceQuality "1"]
[TimeControl "40/5400+30:1800+30"]

1. e4 {[%emt 0:00:05]} e5 {[%emt 0:00:12]} 2. Nf3 {[%emt 0:00:20]} Nc6 {[%emt 0:00:21]} 3. Bc4 {[%emt 0:00:19]} Bc5 {[%emt 1:31:27]} 4. O-O {[%emt 1:31:46]} Nf6 {[%emt 0:00:00]} 5. d3 {[%emt 0:00:00]} O-O {[%emt 0:00:00]} 6. Bg5 {[%emt 0:00:00]} h6 {[%emt 0:00:00]} 7. Bh4 {[%emt 0:00:00]} d6 {[%emt 0:00:00]} 8. h3 {[%emt 0:00:00]} Re8 {[%emt 0:00:00]} 9. Nc3 {[%emt 0:00:00]} Be6 {[%emt 0:00:00]} 10. Nd5 {[%emt 0:00:00]} g5 {[%emt 0:00:00]} 11. Bg3 {[%emt 0:00:00]} Bxd5 {[%emt 0:00:00]} 12. exd5 {[%emt 0:00:00]} Ne7 {[%emt 0:00:00]} 13. Bb5 {[%emt 0:00:00]} c6 {[%emt 0:00:00]} 14. dxc6 {[%emt 0:00:00]} bxc6 {[%emt 0:00:00]} 15. Ba4 {[%emt 0:00:00]} Rb8 {[%emt 0:06:00]} 16. Bb3 {[%emt 0:06:00]} Qb6 {[%emt 0:00:00]} 17. Qd2 {[%emt 0:00:00]} a5 {[%emt 0:00:00]} 18. Nxg5 {[%emt 0:00:00]} hxg5 {[%emt 0:00:00]} 19. Qxg5+ {[%emt 0:00:00]} Ng6 {[%emt 0:02:00]} 20. Qxg6+ {[%emt 0:00:00]} 1-0